[Event "*** Titled Tuesday Blitz"]
[Site "Chess.com"]
[Date "2020.10.27"]
[Round "4"]
[White "Inga83"]
[Black "kamilianin235"]
[Result "1-0"]
[WhiteElo "2406"]
[BlackElo "2122"]
[TimeControl "180+1"]
[EndTime "10:37:59 PDT"]
[Termination "Inga83 won on time"]

1. d4 {[%clk 0:03:00.9]} 1... d5 {[%clk 0:02:58.2]} 2. c4 {[%clk 0:03:00.3]}
2... dxc4 {[%clk 0:02:49]} 3. Nc3 {[%clk 0:02:58.7]} 3... c5 {[%clk 0:02:44]} 4.
d5 {[%clk 0:02:53]} 4... e6 {[%clk 0:02:41.6]} 5. e4 {[%clk 0:02:52.3]} 5... Nf6
{[%clk 0:02:40.7]} 6. Bxc4 {[%clk 0:02:50.4]} 6... exd5 {[%clk 0:02:34.6]} 7.
exd5 {[%clk 0:02:46.4]} 7... Bd6 {[%clk 0:02:32.8]} 8. Nf3 {[%clk 0:02:42.8]}
8... O-O {[%clk 0:02:17.6]} 9. O-O {[%clk 0:02:41.1]} 9... a6 {[%clk 0:02:12.8]}
10. a4 {[%clk 0:02:36.1]} 10... Qc7 {[%clk 0:02:08.2]} 11. h3 {[%clk 0:02:33.7]}
11... Nbd7 {[%clk 0:02:01.9]} 12. Bg5 {[%clk 0:02:25.7]} 12... Ne5 {[%clk
0:01:49.7]} 13. Nxe5 {[%clk 0:02:17.3]} 13... Bxe5 {[%clk 0:01:45.9]} 14. f4
{[%clk 0:02:00.5]} 14... Bd4+ {[%clk 0:01:23.7]} 15. Kh1 {[%clk 0:01:59.7]}
15... Bf5 {[%clk 0:01:18.6]} 16. Qf3 {[%clk 0:01:47]} 16... Rae8 {[%clk
0:01:08.7]} 17. Rae1 {[%clk 0:01:43.6]} 17... Bxc3 {[%clk 0:00:59.2]} 18. bxc3
{[%clk 0:01:39.5]} 18... Ne4 {[%clk 0:00:57.5]} 19. Rd1 {[%clk 0:01:31.3]} 19...
Qd6 {[%clk 0:00:37.8]} 20. Bh4 {[%clk 0:01:27.3]} 20... Qg6 {[%clk 0:00:25.1]}
21. a5 {[%clk 0:01:18.2]} 21... Nd6 {[%clk 0:00:23]} 22. Bd3 {[%clk 0:01:10.9]}
22... Bxd3 {[%clk 0:00:20.8]} 23. Rxd3 {[%clk 0:01:10.2]} 23... Re4 {[%clk
0:00:18.4]} 24. f5 {[%clk 0:00:57.5]} 24... Nxf5 {[%clk 0:00:08.9]} 25. Qxf5
{[%clk 0:00:54.1]} 25... Rxh4 {[%clk 0:00:05.9]} 26. d6 {[%clk 0:00:50.8]} 26...
Qxf5 {[%clk 0:00:04.3]} 27. Rxf5 {[%clk 0:00:50.2]} 27... Re4 {[%clk 0:00:02.9]}
28. Rxc5 {[%clk 0:00:49.5]} 28... Rd8 {[%clk 0:00:01.8]} 29. Rc7 {[%clk
0:00:48.1]} 29... Re6 {[%clk 0:00:01.6]} 30. d7 {[%clk 0:00:47.7]} 1-0

[Event "*** Titled Tuesday Blitz"]
[Site "Chess.com"]
[Date "2020.10.27"]
[Round "4"]
[White "chesstrainer2042"]
[Black "MarkoPe"]
[Result "1-0"]
[WhiteElo "2418"]
[BlackElo "2187"]
[TimeControl "180+1"]
[EndTime "10:38:01 PDT"]
[Termination "chesstrainer2042 won on time"]

1. d4 {[%clk 0:03:00]} 1... d5 {[%clk 0:02:57.2]} 2. Nf3 {[%clk 0:03:00]} 2...
Nf6 {[%clk 0:02:54]} 3. c4 {[%clk 0:03:00]} 3... e6 {[%clk 0:02:53.5]} 4. Nc3
{[%clk 0:02:58.9]} 4... Be7 {[%clk 0:02:47.1]} 5. Bg5 {[%clk 0:02:55.1]} 5...
O-O {[%clk 0:02:39.2]} 6. e3 {[%clk 0:02:55.5]} 6... h6 {[%clk 0:02:13.1]} 7.
Bh4 {[%clk 0:02:53.5]} 7... Ne4 {[%clk 0:02:10.3]} 8. Bxe7 {[%clk 0:02:52.3]}
8... Qxe7 {[%clk 0:01:54.3]} 9. Qc2 {[%clk 0:02:52.3]} 9... Nxc3 {[%clk
0:01:52.2]} 10. Qxc3 {[%clk 0:02:52.7]} 10... b6 {[%clk 0:01:37.3]} 11. Rc1
{[%clk 0:02:50.9]} 11... c6 {[%clk 0:01:34]} 12. Be2 {[%clk 0:02:49.3]} 12...
Bb7 {[%clk 0:01:28.4]} 13. O-O {[%clk 0:02:48.7]} 13... Nd7 {[%clk 0:01:28.5]}
14. Rfd1 {[%clk 0:02:44.3]} 14... Rac8 {[%clk 0:01:27.9]} 15. a3 {[%clk
0:02:37.7]} 15... c5 {[%clk 0:01:26.1]} 16. h3 {[%clk 0:02:34.6]} 16... Rfd8
{[%clk 0:01:25.2]} 17. cxd5 {[%clk 0:02:33.4]} 17... Bxd5 {[%clk 0:01:24.5]} 18.
Ba6 {[%clk 0:02:26.6]} 18... Rc7 {[%clk 0:01:21.3]} 19. Ne1 {[%clk 0:02:22.3]}
19... Nb8 {[%clk 0:01:14.3]} 20. Bf1 {[%clk 0:02:21.2]} 20... Rdc8 {[%clk
0:01:13.9]} 21. Nd3 {[%clk 0:02:09.1]} 21... cxd4 {[%clk 0:01:11.4]} 22. Qxd4
{[%clk 0:02:09.5]} 22... Rxc1 {[%clk 0:01:11.3]} 23. Rxc1 {[%clk 0:02:09.8]}
23... Rxc1 {[%clk 0:01:11.3]} 24. Nxc1 {[%clk 0:02:10]} 24... Nc6 {[%clk
0:01:12.2]} 25. Qc3 {[%clk 0:02:10.1]} 25... e5 {[%clk 0:00:54.8]} 26. Nd3
{[%clk 0:02:06.8]} 26... f6 {[%clk 0:00:50.5]} 27. b4 {[%clk 0:02:05.8]} 27...
Qd6 {[%clk 0:00:45]} 28. b5 {[%clk 0:01:58.8]} 28... Ne7 {[%clk 0:00:44.2]} 29.
Nb4 {[%clk 0:01:58.8]} 29... Bb7 {[%clk 0:00:41.5]} 30. Bc4+ {[%clk 0:01:48.9]}
30... Kh8 {[%clk 0:00:39.1]} 31. Qc2 {[%clk 0:01:43.9]} 31... Qc5 {[%clk
0:00:28.5]} 32. Qd3 {[%clk 0:01:41.5]} 32... Qc7 {[%clk 0:00:20.7]} 33. Ba2
{[%clk 0:01:26.8]} 33... g6 {[%clk 0:00:16.4]} 34. Qb3 {[%clk 0:01:25.2]} 34...
g5 {[%clk 0:00:08.4]} 35. Qf7 {[%clk 0:01:22.5]} 35... Qd6 {[%clk 0:00:08.6]}
36. Nc6 {[%clk 0:01:14.2]} 36... Bxc6 {[%clk 0:00:08.3]} 37. bxc6 {[%clk
0:01:14]} 1-0

[Event "*** Titled Tuesday Blitz"]
[Site "Chess.com"]
[Date "2020.10.27"]
[Round "4"]
[White "Mr_Sinigami"]
[Black "MarkEvgenievich"]
[Result "1-0"]
[WhiteElo "2477"]
[BlackElo "2312"]
[TimeControl "180+1"]
[EndTime "10:38:03 PDT"]
[Termination "Mr_Sinigami won by checkmate"]

1. d4 {[%clk 0:03:00.9]} 1... Nf6 {[%clk 0:02:58.5]} 2. Nf3 {[%clk 0:03:01.5]}
2... e6 {[%clk 0:02:56.9]} 3. g3 {[%clk 0:03:01.6]} 3... d5 {[%clk 0:02:53.9]}
4. Bg2 {[%clk 0:03:02.1]} 4... Be7 {[%clk 0:02:53.2]} 5. O-O {[%clk 0:03:02.5]}
5... O-O {[%clk 0:02:53]} 6. c4 {[%clk 0:03:03]} 6... c6 {[%clk 0:02:53.4]} 7.
Qc2 {[%clk 0:03:01.7]} 7... Ne4 {[%clk 0:02:52.7]} 8. Nc3 {[%clk 0:02:53.8]}
8... f5 {[%clk 0:02:51.9]} 9. b3 {[%clk 0:02:51]} 9... Nd7 {[%clk 0:02:47.4]}
10. Bb2 {[%clk 0:02:50.4]} 10... b6 {[%clk 0:02:45.8]} 11. Ne1 {[%clk
0:02:44.5]} 11... Bb7 {[%clk 0:02:44.9]} 12. Nd3 {[%clk 0:02:41.8]} 12... c5
{[%clk 0:02:39.7]} 13. cxd5 {[%clk 0:02:29.8]} 13... exd5 {[%clk 0:02:37.4]} 14.
Nf4 {[%clk 0:02:29.3]} 14... Nxc3 {[%clk 0:02:05.2]} 15. Bxc3 {[%clk 0:02:24.1]}
15... cxd4 {[%clk 0:02:02]} 16. Bxd4 {[%clk 0:02:16.7]} 16... Rc8 {[%clk
0:01:57.2]} 17. Qb2 {[%clk 0:02:11.8]} 17... Rf7 {[%clk 0:01:27.9]} 18. Ne6
{[%clk 0:02:01.7]} 18... Qe8 {[%clk 0:01:24.4]} 19. Nxg7 {[%clk 0:02:01.2]}
19... Qf8 {[%clk 0:01:22.6]} 20. Ne6 {[%clk 0:01:58.3]} 20... Qe8 {[%clk
0:01:21.8]} 21. Nf4 {[%clk 0:01:50.3]} 21... Nf6 {[%clk 0:01:13.8]} 22. Rac1
{[%clk 0:01:49.2]} 22... Rxc1 {[%clk 0:01:06.8]} 23. Rxc1 {[%clk 0:01:45.2]}
23... Qd7 {[%clk 0:01:07.2]} 24. Bf3 {[%clk 0:01:40.7]} 24... Rf8 {[%clk
0:01:03.4]} 25. Nh5 {[%clk 0:01:32.2]} 25... Nxh5 {[%clk 0:00:57.7]} 26. Bxh5
{[%clk 0:01:25.8]} 26... f4 {[%clk 0:00:56.4]} 27. Bf3 {[%clk 0:01:22.7]} 27...
fxg3 {[%clk 0:00:52.8]} 28. hxg3 {[%clk 0:01:22.3]} 28... Bd6 {[%clk 0:00:47.8]}
29. Qd2 {[%clk 0:01:20.5]} 29... Qe7 {[%clk 0:00:39.7]} 30. Qh6 {[%clk
0:01:16.2]} 30... Rf5 {[%clk 0:00:27.1]} 31. Bg4 {[%clk 0:01:10.7]} 31... Qg5
{[%clk 0:00:20.2]} 32. Qxd6 {[%clk 0:00:56.3]} 32... Qxc1+ {[%clk 0:00:19.1]}
33. Kg2 {[%clk 0:00:53.8]} 33... Rf7 {[%clk 0:00:09.8]} 34. Qd8+ {[%clk
0:00:50.1]} 34... Rf8 {[%clk 0:00:07.6]} 35. Be6# {[%clk 0:00:50.2]} 1-0

[Event "*** Titled Tuesday Blitz"]
[Site "Chess.com"]
[Date "2020.10.27"]
[Round "4"]
[White "Michaelson_11"]
[Black "mamey78"]
[Result "1-0"]
[WhiteElo "2135"]
[BlackElo "2384"]
[TimeControl "180+1"]
[EndTime "10:38:08 PDT"]
[Termination "Michaelson_11 won on time"]

1. e4 {[%clk 0:03:00.9]} 1... e5 {[%clk 0:02:59.4]} 2. Nf3 {[%clk 0:03:00.3]}
2... Nc6 {[%clk 0:02:59.4]} 3. Nc3 {[%clk 0:03:01.2]} 3... Nf6 {[%clk
0:02:58.6]} 4. Bb5 {[%clk 0:03:01.7]} 4... Nd4 {[%clk 0:02:56.4]} 5. Bc4 {[%clk
0:02:57.4]} 5... Bc5 {[%clk 0:02:56.2]} 6. d3 {[%clk 0:02:48.1]} 6... d6 {[%clk
0:02:55.2]} 7. Bg5 {[%clk 0:02:43.3]} 7... c6 {[%clk 0:02:47.5]} 8. Nxd4 {[%clk
0:02:37.8]} 8... Bxd4 {[%clk 0:02:44.5]} 9. Qd2 {[%clk 0:02:32.9]} 9... h6
{[%clk 0:02:40.7]} 10. Be3 {[%clk 0:02:12.1]} 10... O-O {[%clk 0:02:22.7]} 11.
O-O-O {[%clk 0:02:04.9]} 11... d5 {[%clk 0:02:04.7]} 12. exd5 {[%clk 0:01:56.4]}
12... cxd5 {[%clk 0:02:04.4]} 13. Bb3 {[%clk 0:01:52.4]} 13... a5 {[%clk
0:01:50.9]} 14. a4 {[%clk 0:01:43]} 14... Bxc3 {[%clk 0:01:46.4]} 15. bxc3
{[%clk 0:01:43.9]} 15... Qd6 {[%clk 0:01:12.1]} 16. Bxh6 {[%clk 0:01:24.8]}
16... gxh6 {[%clk 0:00:49.5]} 17. Qxh6 {[%clk 0:01:25.7]} 17... b5 {[%clk
0:00:44]} 18. d4 {[%clk 0:01:01.1]} 18... e4 {[%clk 0:00:20.9]} 19. Rde1 {[%clk
0:00:40.8]} 19... Bf5 {[%clk 0:00:19.5]} 20. Qg5+ {[%clk 0:00:35.7]} 20... Bg6
{[%clk 0:00:18.5]} 21. h4 {[%clk 0:00:35.9]} 21... bxa4 {[%clk 0:00:18.6]} 22.
h5 {[%clk 0:00:29]} 22... Nxh5 {[%clk 0:00:14.7]} 23. Rxh5 {[%clk 0:00:23.1]}
23... axb3 {[%clk 0:00:12.5]} 24. Reh1 {[%clk 0:00:23.1]} 1-0

[Event "*** Titled Tuesday Blitz"]
[Site "Chess.com"]
[Date "2020.10.27"]
[Round "4"]
[White "Flawless_Fighter"]
[Black "crescentmoon2411"]
[Result "0-1"]
[WhiteElo "2607"]
[BlackElo "2845"]
[TimeControl "180+1"]
[EndTime "10:38:09 PDT"]
[Termination "crescentmoon2411 won by checkmate"]

1. d4 {[%clk 0:03:00.9]} 1... Nf6 {[%clk 0:02:37]} 2. c4 {[%clk 0:02:58.8]} 2...
c5 {[%clk 0:02:36.7]} 3. d5 {[%clk 0:02:58.5]} 3... e6 {[%clk 0:02:36.9]} 4. Nc3
{[%clk 0:02:58.3]} 4... exd5 {[%clk 0:02:36.6]} 5. cxd5 {[%clk 0:02:59.2]} 5...
d6 {[%clk 0:02:37.3]} 6. e4 {[%clk 0:02:59.3]} 6... g6 {[%clk 0:02:37.4]} 7. Bd3
{[%clk 0:02:59.1]} 7... Bg7 {[%clk 0:02:37.2]} 8. Nge2 {[%clk 0:02:59.1]} 8...
O-O {[%clk 0:02:37.3]} 9. Ng3 {[%clk 0:02:59.7]} 9... a6 {[%clk 0:02:29.9]} 10.
a4 {[%clk 0:02:59.5]} 10... h5 {[%clk 0:02:23.2]} 11. Bg5 {[%clk 0:02:56.8]}
11... Qb6 {[%clk 0:02:18.2]} 12. Qd2 {[%clk 0:02:54.1]} 12... Nh7 {[%clk
0:02:14.5]} 13. Be3 {[%clk 0:02:48.7]} 13... h4 {[%clk 0:02:06.1]} 14. Nge2
{[%clk 0:02:45.4]} 14... h3 {[%clk 0:02:00.2]} 15. g3 {[%clk 0:02:24.9]} 15...
Nd7 {[%clk 0:01:59.8]} 16. f4 {[%clk 0:02:22.8]} 16... Ndf6 {[%clk 0:01:51]} 17.
Qc2 {[%clk 0:01:39.8]} 17... Ng4 {[%clk 0:01:48.9]} 18. Bg1 {[%clk 0:01:34.5]}
18... Qb4 {[%clk 0:01:43.9]} 19. Nc1 {[%clk 0:00:45]} 19... f5 {[%clk
0:01:37.5]} 20. a5 {[%clk 0:00:40.8]} 20... Bd7 {[%clk 0:01:32.4]} 21. Be2
{[%clk 0:00:29.4]} 21... Rae8 {[%clk 0:00:59.8]} 22. Bxg4 {[%clk 0:00:29.1]}
22... fxg4 {[%clk 0:00:59.7]} 23. Be3 {[%clk 0:00:21]} 23... Rxe4 {[%clk
0:00:54.7]} 24. Kf2 {[%clk 0:00:14.6]} 24... Rxe3 {[%clk 0:00:51.5]} 25. Kxe3
{[%clk 0:00:13.4]} 25... Bf5 {[%clk 0:00:48.3]} 26. Qa4 {[%clk 0:00:09.7]} 26...
Qxb2 {[%clk 0:00:46.6]} 27. N1e2 {[%clk 0:00:10.1]} 27... Bd4+ {[%clk
0:00:44.1]} 28. Qxd4 {[%clk 0:00:08]} 28... cxd4+ {[%clk 0:00:43.7]} 29. Kxd4
{[%clk 0:00:08.4]} 29... Qd2+ {[%clk 0:00:38.3]} 30. Kc4 {[%clk 0:00:08.3]}
30... Rc8+ {[%clk 0:00:38.2]} 31. Kb3 {[%clk 0:00:08.4]} 31... Qc2+ {[%clk
0:00:35.3]} 32. Kb4 {[%clk 0:00:08.5]} 32... Qb2+ {[%clk 0:00:34.8]} 33. Ka4
{[%clk 0:00:08.8]} 33... Bc2# {[%clk 0:00:34.5]} 0-1

[Event "*** Titled Tuesday Blitz"]
[Site "Chess.com"]
[Date "2020.10.27"]
[Round "4"]
[White "bazar-wokzal"]
[Black "Benjoneliere44"]
[Result "0-1"]
[WhiteElo "2489"]
[BlackElo "2672"]
[TimeControl "180+1"]
[EndTime "10:38:10 PDT"]
[Termination "Benjoneliere44 won on time"]

1. e4 {[%clk 0:03:00.9]} 1... c5 {[%clk 0:02:59.6]} 2. c3 {[%clk 0:03:01]} 2...
d6 {[%clk 0:02:56.3]} 3. d4 {[%clk 0:03:00.9]} 3... Nf6 {[%clk 0:02:56.4]} 4.
Bd3 {[%clk 0:03:00.6]} 4... Nc6 {[%clk 0:02:55.6]} 5. Ne2 {[%clk 0:02:55.1]}
5... e5 {[%clk 0:02:52.3]} 6. O-O {[%clk 0:02:52.7]} 6... cxd4 {[%clk
0:02:46.6]} 7. cxd4 {[%clk 0:02:52.4]} 7... Be7 {[%clk 0:02:47.2]} 8. d5 {[%clk
0:02:49.8]} 8... Nb8 {[%clk 0:02:46.3]} 9. Nbc3 {[%clk 0:02:46.2]} 9... O-O
{[%clk 0:02:44]} 10. h3 {[%clk 0:02:43.9]} 10... Nbd7 {[%clk 0:02:42]} 11. Be3
{[%clk 0:02:43.8]} 11... h6 {[%clk 0:02:33.8]} 12. Rc1 {[%clk 0:02:43.2]} 12...
a6 {[%clk 0:02:33.8]} 13. b4 {[%clk 0:02:39.6]} 13... Nh7 {[%clk 0:02:28.2]} 14.
g3 {[%clk 0:02:21.7]} 14... Bg5 {[%clk 0:02:26.1]} 15. f4 {[%clk 0:02:21.7]}
15... exf4 {[%clk 0:02:26.8]} 16. gxf4 {[%clk 0:02:21.7]} 16... Bh4 {[%clk
0:02:20.9]} 17. Nd4 {[%clk 0:02:20.4]} 17... Ndf6 {[%clk 0:02:14.2]} 18. Qf3
{[%clk 0:02:17.4]} 18... Re8 {[%clk 0:02:05.9]} 19. Kh1 {[%clk 0:01:47.6]} 19...
Bd7 {[%clk 0:02:03.5]} 20. Rg1 {[%clk 0:01:46.2]} 20... Kh8 {[%clk 0:02:04]} 21.
Rc2 {[%clk 0:01:45.4]} 21... Rc8 {[%clk 0:02:01.2]} 22. Qg2 {[%clk 0:01:14.1]}
22... g6 {[%clk 0:01:57.7]} 23. Nf3 {[%clk 0:00:59.2]} 23... Nh5 {[%clk
0:01:56.2]} 24. Nxh4 {[%clk 0:00:52.6]} 24... Qxh4 {[%clk 0:01:54.5]} 25. Bd4+
{[%clk 0:00:42.9]} 25... Kg8 {[%clk 0:01:51.7]} 26. f5 {[%clk 0:00:40.6]} 26...
Nf4 {[%clk 0:01:37]} 27. fxg6 {[%clk 0:00:27.2]} 27... fxg6 {[%clk 0:01:35.1]}
28. Qxg6+ {[%clk 0:00:21.3]} 28... Nxg6 {[%clk 0:01:33.9]} 29. Rxg6+ {[%clk
0:00:22.2]} 29... Kf8 {[%clk 0:01:34.4]} 30. Rf2+ {[%clk 0:00:14.2]} 30... Qxf2
{[%clk 0:01:32.9]} 31. Bxf2 {[%clk 0:00:13.9]} 31... Rxc3 {[%clk 0:01:28.4]} 32.
Bf1 {[%clk 0:00:10.5]} 32... Rf3 {[%clk 0:01:26]} 33. Kg2 {[%clk 0:00:10.1]}
33... Rf7 {[%clk 0:01:25.7]} 34. Rxd6 {[%clk 0:00:09.3]} 34... Ng5 {[%clk
0:01:21.9]} 35. Rxh6 {[%clk 0:00:06.7]} 35... Rxe4 {[%clk 0:01:18.5]} 36. Bc5+
{[%clk 0:00:06.4]} 36... Kg7 {[%clk 0:01:16.7]} 37. Rh5 {[%clk 0:00:04.7]} 37...
Kg6 {[%clk 0:01:16.6]} 38. Rh8 {[%clk 0:00:04.8]} 38... Bxh3+ {[%clk 0:01:13.3]}
39. Rxh3 {[%clk 0:00:02.9]} 39... Nxh3 {[%clk 0:01:14.2]} 40. Bd3 {[%clk
0:00:03.5]} 40... Ng5 {[%clk 0:01:14.3]} 41. b5 {[%clk 0:00:01.6]} 41... axb5
{[%clk 0:01:10.5]} 42. Bxb5 {[%clk 0:00:01.6]} 42... Rf5 {[%clk 0:01:07.4]} 0-1

[Event "*** Titled Tuesday Blitz"]
[Site "Chess.com"]
[Date "2020.10.27"]
[Round "4"]
[White "szefru"]
[Black "Omk124"]
[Result "1-0"]
[WhiteElo "2263"]
[BlackElo "2417"]
[TimeControl "180+1"]
[EndTime "10:38:10 PDT"]
[Termination "szefru won by resignation"]

1. e4 {[%clk 0:02:59.6]} 1... g6 {[%clk 0:02:58.9]} 2. d4 {[%clk 0:02:59.2]}
2... Bg7 {[%clk 0:02:57]} 3. Be3 {[%clk 0:02:59.6]} 3... c6 {[%clk 0:02:56.3]}
4. Nc3 {[%clk 0:02:58.7]} 4... d5 {[%clk 0:02:55.8]} 5. f3 {[%clk 0:02:52.3]}
5... Qb6 {[%clk 0:02:55.7]} 6. Na4 {[%clk 0:02:32]} 6... Qa5+ {[%clk 0:02:50.8]}
7. c3 {[%clk 0:02:32]} 7... dxe4 {[%clk 0:02:46.9]} 8. fxe4 {[%clk 0:02:31.7]}
8... Nf6 {[%clk 0:02:47.5]} 9. Bd3 {[%clk 0:02:23.1]} 9... Ng4 {[%clk
0:02:39.4]} 10. Bd2 {[%clk 0:02:08]} 10... e5 {[%clk 0:01:46.5]} 11. c4 {[%clk
0:01:38.4]} 11... Qxa4 {[%clk 0:01:17.8]} 12. Qxa4 {[%clk 0:01:34.9]} 12... exd4
{[%clk 0:01:17]} 13. Nf3 {[%clk 0:01:20.2]} 13... O-O {[%clk 0:01:15.9]} 14.
O-O-O {[%clk 0:01:19.1]} 14... Nf2 {[%clk 0:01:15.3]} 15. h4 {[%clk 0:01:11.6]}
15... Nxd3+ {[%clk 0:01:12.4]} 16. Kb1 {[%clk 0:01:11.8]} 16... Nf2 {[%clk
0:01:11.8]} 17. h5 {[%clk 0:01:11.1]} 17... Nxd1 {[%clk 0:01:09.5]} 18. Qxd1
{[%clk 0:01:10.1]} 18... Bg4 {[%clk 0:01:08.5]} 19. hxg6 {[%clk 0:01:03.8]}
19... fxg6 {[%clk 0:01:05.7]} 20. Bh6 {[%clk 0:00:59.8]} 20... c5 {[%clk
0:01:00.4]} 21. Qd2 {[%clk 0:00:52.2]} 21... Rf7 {[%clk 0:00:46]} 22. Bxg7
{[%clk 0:00:37.5]} 22... Bxf3 {[%clk 0:00:42.8]} 23. gxf3 {[%clk 0:00:34.1]}
23... Rxg7 {[%clk 0:00:42.3]} 24. Qg5 {[%clk 0:00:21.1]} 24... Nd7 {[%clk
0:00:41.6]} 25. Qd5+ {[%clk 0:00:21.4]} 25... Kh8 {[%clk 0:00:39.9]} 26. Qxb7
{[%clk 0:00:21.7]} 26... Rf8 {[%clk 0:00:40]} 27. e5 {[%clk 0:00:20.5]} 27...
Nxe5 {[%clk 0:00:38.8]} 28. Qd5 {[%clk 0:00:21.1]} 28... Nxf3 {[%clk 0:00:37.8]}
29. Qxc5 {[%clk 0:00:21.1]} 29... d3 {[%clk 0:00:35.1]} 30. Qxf8+ {[%clk
0:00:20.3]} 30... Rg8 {[%clk 0:00:33.7]} 31. Qf6+ {[%clk 0:00:20]} 31... Rg7
{[%clk 0:00:33.2]} 32. Qxf3 {[%clk 0:00:20.4]} 1-0

[Event "*** Titled Tuesday Blitz"]
[Site "Chess.com"]
[Date "2020.10.27"]
[Round "4"]
[White "Kotofeyca"]
[Black "TheMagnet"]
[Result "0-1"]
[WhiteElo "2350"]
[BlackElo "2577"]
[TimeControl "180+1"]
[EndTime "10:38:11 PDT"]
[Termination "TheMagnet won on time"]

1. d4 {[%clk 0:03:00.9]} 1... Nf6 {[%clk 0:03:00.3]} 2. c4 {[%clk 0:03:00.6]}
2... g6 {[%clk 0:03:00.9]} 3. f3 {[%clk 0:03:00.8]} 3... Bg7 {[%clk 0:02:59.9]}
4. e4 {[%clk 0:03:00.8]} 4... d6 {[%clk 0:03:00.4]} 5. Nc3 {[%clk 0:03:01.3]}
5... O-O {[%clk 0:03:00.7]} 6. Be3 {[%clk 0:03:01.8]} 6... c5 {[%clk 0:03:01.4]}
7. dxc5 {[%clk 0:03:01]} 7... dxc5 {[%clk 0:03:00.8]} 8. Qxd8 {[%clk 0:03:01.9]}
8... Rxd8 {[%clk 0:03:01.4]} 9. Bxc5 {[%clk 0:03:02.6]} 9... Nc6 {[%clk
0:03:01.7]} 10. Nd5 {[%clk 0:03:03.1]} 10... e6 {[%clk 0:02:56.1]} 11. Ne7+
{[%clk 0:03:02.7]} 11... Nxe7 {[%clk 0:02:55.9]} 12. Bxe7 {[%clk 0:03:03.6]}
12... Rd7 {[%clk 0:02:56.4]} 13. Ba3 {[%clk 0:03:03.5]} 13... b6 {[%clk
0:02:53.1]} 14. Ne2 {[%clk 0:03:01.8]} 14... Ba6 {[%clk 0:02:52.3]} 15. Rc1
{[%clk 0:02:49.3]} 15... Rc8 {[%clk 0:02:40.1]} 16. b3 {[%clk 0:02:41.5]} 16...
Rdc7 {[%clk 0:02:34.3]} 17. Nc3 {[%clk 0:02:10.4]} 17... Nd7 {[%clk 0:02:26.5]}
18. Be2 {[%clk 0:01:25.4]} 18... b5 {[%clk 0:02:14.3]} 19. Kf2 {[%clk
0:01:08.6]} 19... Bd4+ {[%clk 0:02:07.6]} 20. Kg3 {[%clk 0:01:08.2]} 20... bxc4
{[%clk 0:02:06.2]} 21. Rhd1 {[%clk 0:01:03.9]} 21... Be3 {[%clk 0:01:59]} 22.
Rb1 {[%clk 0:00:54.6]} 22... Nb6 {[%clk 0:01:31.7]} 23. Bd6 {[%clk 0:00:31.6]}
23... Rd7 {[%clk 0:01:24.2]} 24. Bf4 {[%clk 0:00:29.9]} 24... Bxf4+ {[%clk
0:01:20.1]} 25. Kxf4 {[%clk 0:00:30.8]} 25... Rxd1 {[%clk 0:01:19]} 26. Nxd1
{[%clk 0:00:24.3]} 26... Rc5 {[%clk 0:01:15.2]} 27. Ne3 {[%clk 0:00:18.6]} 27...
e5+ {[%clk 0:00:53.6]} 28. Kg5 {[%clk 0:00:18.5]} 28... Kg7 {[%clk 0:00:52.3]}
29. Rc1 {[%clk 0:00:18.6]} 29... cxb3 {[%clk 0:00:40.1]} 30. Rxc5 {[%clk
0:00:17.9]} 30... b2 {[%clk 0:00:40.5]} 31. Bxa6 {[%clk 0:00:09]} 31... b1=Q
{[%clk 0:00:40.5]} 32. Rxe5 {[%clk 0:00:06.8]} 32... Qc1 {[%clk 0:00:37.5]} 33.
Kf4 {[%clk 0:00:06.5]} 33... Qc7 {[%clk 0:00:37.3]} 0-1

[Event "*** Titled Tuesday Blitz"]
[Site "Chess.com"]
[Date "2020.10.27"]
[Round "4"]
[White "TigrVShlyape"]
[Black "QuintilianoR"]
[Result "1-0"]
[WhiteElo "2875"]
[BlackElo "2673"]
[TimeControl "180+1"]
[EndTime "10:38:15 PDT"]
[Termination "TigrVShlyape won by resignation"]

1. d4 {[%clk 0:03:00.9]} 1... d5 {[%clk 0:02:59.9]} 2. Nf3 {[%clk 0:02:48.5]}
2... Nf6 {[%clk 0:03:00.2]} 3. Bf4 {[%clk 0:02:40]} 3... c5 {[%clk 0:02:59.9]}
4. e3 {[%clk 0:02:39.5]} 4... Nc6 {[%clk 0:03:00.3]} 5. Nbd2 {[%clk 0:02:38.8]}
5... e6 {[%clk 0:03:00.3]} 6. c3 {[%clk 0:02:38.7]} 6... Be7 {[%clk 0:03:00.5]}
7. Bd3 {[%clk 0:02:36.3]} 7... Nh5 {[%clk 0:03:00.3]} 8. Be5 {[%clk 0:02:35]}
8... f6 {[%clk 0:03:00.6]} 9. Bg3 {[%clk 0:02:33.4]} 9... g6 {[%clk 0:03:00.9]}
10. a3 {[%clk 0:02:31.4]} 10... O-O {[%clk 0:02:59.7]} 11. Qe2 {[%clk
0:02:27.5]} 11... a5 {[%clk 0:02:48.2]} 12. a4 {[%clk 0:02:25.5]} 12... cxd4
{[%clk 0:02:16]} 13. exd4 {[%clk 0:02:22.8]} 13... e5 {[%clk 0:02:05.9]} 14.
dxe5 {[%clk 0:02:20.5]} 14... Nxg3 {[%clk 0:02:05.6]} 15. hxg3 {[%clk
0:02:19.9]} 15... fxe5 {[%clk 0:02:06]} 16. O-O-O {[%clk 0:01:56.4]} 16... Bf6
{[%clk 0:01:57.1]} 17. Ne4 {[%clk 0:01:49.2]} 17... Be6 {[%clk 0:01:27.3]} 18.
Bc4 {[%clk 0:01:32.9]} 18... Rc8 {[%clk 0:00:43.9]} 19. Nxf6+ {[%clk 0:01:28.3]}
19... Qxf6 {[%clk 0:00:39.8]} 20. Bxd5 {[%clk 0:01:22]} 20... Bxd5 {[%clk
0:00:36.7]} 21. Rxd5 {[%clk 0:01:21.2]} 21... Nd4 {[%clk 0:00:24.9]} 22. Qxe5
{[%clk 0:01:00.5]} 22... Nxf3 {[%clk 0:00:23.6]} 23. Qxf6 {[%clk 0:00:51.1]}
23... Rxf6 {[%clk 0:00:24.5]} 24. gxf3 {[%clk 0:00:51.2]} 24... Rxf3 {[%clk
0:00:25.4]} 25. Rxa5 {[%clk 0:00:39.6]} 25... Rxf2 {[%clk 0:00:23.7]} 26. Rb5
{[%clk 0:00:39.7]} 26... Rc7 {[%clk 0:00:19.9]} 27. Rd1 {[%clk 0:00:39.6]} 27...
Rf3 {[%clk 0:00:18.8]} 28. Rd8+ {[%clk 0:00:35.6]} 28... Kg7 {[%clk 0:00:18.7]}
29. Rb8 {[%clk 0:00:35.5]} 29... Rxg3 {[%clk 0:00:18.2]} 30. R8xb7 {[%clk
0:00:35.9]} 30... Rxb7 {[%clk 0:00:19.1]} 31. Rxb7+ {[%clk 0:00:36.2]} 31... Kh6
{[%clk 0:00:20]} 32. a5 {[%clk 0:00:36.7]} 32... Rg5 {[%clk 0:00:20.1]} 33. b4
{[%clk 0:00:36]} 33... Rg2 {[%clk 0:00:19.9]} 34. Kb1 {[%clk 0:00:35.7]} 34...
Rf2 {[%clk 0:00:18]} 35. a6 {[%clk 0:00:35.1]} 35... Rf8 {[%clk 0:00:18.4]} 36.
a7 {[%clk 0:00:35.4]} 36... Ra8 {[%clk 0:00:18.7]} 37. b5 {[%clk 0:00:36]} 37...
g5 {[%clk 0:00:19.3]} 38. b6 {[%clk 0:00:36.3]} 38... g4 {[%clk 0:00:19.6]} 39.
Rb8 {[%clk 0:00:36.6]} 1-0